[Event "Titled Tuesday Blitz July 11 Early 2023"]
[White "Oparin, Grigoriy"]
[Black "Gordievsky, Dmitry"]
[WhiteFideId "24125890"]
[BlackFideId "24112798"]
[WhiteElo "2959"]
[BlackElo "2914"]
[Result "1-0"]
[Round "9"]
[TimeControl "180+2"]
[Date "2023.07.11"]
[WhiteClock "0:00:33"]
[BlackClock "0:00:01"]
[Board "8"]

1. c4 {[%clk 0:03:00]}  c5 {[%clk 0:02:59]} 2. Nc3 {[%clk 0:03:00]}  g6 {[%clk 0:02:59]} 3. e3 {[%clk 0:02:58]}  Nf6 {[%clk 0:02:57]} 4. d4 {[%clk 0:02:58]}  Bg7 {[%clk 0:02:57]} 5. Nf3 {[%clk 0:02:56]}  cxd4 {[%clk 0:02:57]} 6. Nxd4 {[%clk 0:02:50]}  Nc6 {[%clk 0:02:49]} 7. Be2 {[%clk 0:02:41]}  O-O {[%clk 0:02:49]} 8. O-O {[%clk 0:02:41]}  d6 {[%clk 0:02:45]} 9. b3 {[%clk 0:02:25]}  Nxd4 {[%clk 0:02:24]} 10. exd4 {[%clk 0:02:26]}  d5 {[%clk 0:02:22]} 11. Be3 {[%clk 0:02:19]}  Bf5 {[%clk 0:02:17]} 12. c5 {[%clk 0:02:18]}  Ne4 {[%clk 0:02:03]} 13. Nxe4 {[%clk 0:02:13]}  Bxe4 {[%clk 0:02:04]} 14. Qd2 {[%clk 0:02:11]}  h5 {[%clk 0:01:54]} 15. b4 {[%clk 0:02:10]}  e5 {[%clk 0:01:47]} 16. Rfd1 {[%clk 0:02:04]}  Qe7 {[%clk 0:01:33]} 17. Bf1 {[%clk 0:02:01]}  Rad8 {[%clk 0:01:30]} 18. Rac1 {[%clk 0:01:59]}  Kh7 {[%clk 0:01:21]} 19. b5 {[%clk 0:01:57]}  exd4 {[%clk 0:01:19]} 20. Bxd4 {[%clk 0:01:57]}  Bh6 {[%clk 0:01:19]} 21. Be3 {[%clk 0:01:57]}  Bg7 {[%clk 0:01:05]} 22. Bg5 {[%clk 0:01:57]}  f6 {[%clk 0:01:03]} 23. Be3 {[%clk 0:01:56]}  f5 {[%clk 0:00:58]} 24. Bg5 {[%clk 0:01:54]}  Bf6 {[%clk 0:00:56]} 25. Bxf6 {[%clk 0:01:54]}  Qxf6 {[%clk 0:00:53]} 26. f3 {[%clk 0:01:50]}  d4 {[%clk 0:00:54]} 27. fxe4 {[%clk 0:01:41]}  fxe4 {[%clk 0:00:54]} 28. c6 {[%clk 0:01:41]}  e3 {[%clk 0:00:51]} 29. Qe2 {[%clk 0:01:39]}  Qe5 {[%clk 0:00:44]} 30. c7 {[%clk 0:01:27]}  Rc8 {[%clk 0:00:44]} 31. Qc4 {[%clk 0:01:28]}  Rf4 {[%clk 0:00:38]} 32. g3 {[%clk 0:01:22]}  Qg5 {[%clk 0:00:11]} 33. Bh3 {[%clk 0:00:45]}  Rf2 {[%clk 0:00:02]} 34. Qxd4 {[%clk 0:00:39]}  Rcf8 {[%clk 0:00:01]} 35. c8=Q {[%clk 0:00:36]}  e2 {[%clk 0:00:01]} 36. Rc7+ {[%clk 0:00:33]}  Kh6 {[%clk 0:00:01]} 37. Qg7# {[%clk 0:00:33]} 1-0


[Site "https://www.chess.com"]

[Event "Titled Tuesday Blitz July 11 Early 2023"]
[White "Dubov, Daniil"]
[Black "Kosteniuk, Alexandra"]
[WhiteFideId "24126055"]
[BlackFideId "4128125"]
[WhiteElo "3074"]
[BlackElo "2793"]
[Result "1-0"]
[Round "9"]
[TimeControl "180+2"]
[Date "2023.07.11"]
[WhiteClock "0:00:13"]
[BlackClock "0:00:00"]
[Board "11"]

1. e4 {[%clk 0:03:00]}  e5 {[%clk 0:02:58]} 2. Nf3 {[%clk 0:03:00]}  Nf6 {[%clk 0:02:58]} 3. Nc3 {[%clk 0:03:01]}  Nc6 {[%clk 0:02:58]} 4. Bc4 {[%clk 0:03:02]}  Nxe4 {[%clk 0:02:55]} 5. O-O {[%clk 0:03:02]}  Nf6 {[%clk 0:02:47]} 6. d4 {[%clk 0:02:49]}  exd4 {[%clk 0:02:33]} 7. Nd5 {[%clk 0:02:35]}  Be7 {[%clk 0:02:21]} 8. Nxe7 {[%clk 0:02:31]}  Nxe7 {[%clk 0:02:19]} 9. Bg5 {[%clk 0:02:32]}  d5 {[%clk 0:02:14]} 10. Bxf6 {[%clk 0:02:28]}  gxf6 {[%clk 0:02:12]} 11. Qxd4 {[%clk 0:02:28]}  dxc4 {[%clk 0:02:03]} 12. Qxf6 {[%clk 0:02:28]}  Ng6 {[%clk 0:01:35]} 13. Qg7 {[%clk 0:02:24]}  Be6 {[%clk 0:01:25]} 14. h4 {[%clk 0:01:44]}  Qe7 {[%clk 0:01:23]} 15. Rad1 {[%clk 0:01:43]}  Qf8 {[%clk 0:01:02]} 16. Qf6 {[%clk 0:01:39]}  Qe7 {[%clk 0:01:01]} 17. Qg7 {[%clk 0:01:38]}  Qf8 {[%clk 0:00:59]} 18. Qd4 {[%clk 0:01:37]}  Rg8 {[%clk 0:00:53]} 19. Rfe1 {[%clk 0:01:26]}  Qe7 {[%clk 0:00:51]} 20. h5 {[%clk 0:01:25]}  Nf8 {[%clk 0:00:47]} 21. Ne5 {[%clk 0:01:14]}  Qg5 {[%clk 0:00:38]} 22. g3 {[%clk 0:01:12]}  Rd8 {[%clk 0:00:36]} 23. Qxa7 {[%clk 0:01:09]}  Nd7 {[%clk 0:00:30]} 24. Qa4 {[%clk 0:00:41]}  c6 {[%clk 0:00:25]} 25. Nxc4 {[%clk 0:00:36]}  Kf8 {[%clk 0:00:26]} 26. Nd6 {[%clk 0:00:33]}  Qc5 {[%clk 0:00:24]} 27. Qf4 {[%clk 0:00:28]}  Rg4 {[%clk 0:00:21]} 28. Qh6+ {[%clk 0:00:24]}  Kg8 {[%clk 0:00:21]} 29. Rxe6 {[%clk 0:00:24]}  Rxg3+ {[%clk 0:00:11]} 30. Kf1 {[%clk 0:00:24]}  Nf8 {[%clk 0:00:08]} 31. Re4 {[%clk 0:00:16]}  Rxd6 {[%clk 0:00:07]} 32. Qxd6 {[%clk 0:00:14]}  Qxd6 {[%clk 0:00:04]} 33. Rxd6 {[%clk 0:00:14]}  Rg5 {[%clk 0:00:05]} 34. Re8 {[%clk 0:00:13]}  h6 {[%clk 0:00:00]} 35. Rdd8 {[%clk 0:00:13]} 1-0


[Site "https://www.chess.com"]

[Event "Titled Tuesday Blitz July 11 Early 2023"]
[White "Gorovets, Andrey"]
[Black "Shimanov, Aleksandr"]
[WhiteFideId "13504037"]
[BlackFideId "4198603"]
[WhiteElo "2768"]
[BlackElo "2925"]
[Result "1-0"]
[Round "9"]
[TimeControl "180+2"]
[Date "2023.07.11"]
[WhiteClock "0:00:10"]
[BlackClock "0:00:00"]
[Board "13"]

1. d4 {[%clk 0:02:58]}  g6 {[%clk 0:02:55]} 2. Nf3 {[%clk 0:02:58]}  Bg7 {[%clk 0:02:54]} 3. c4 {[%clk 0:02:59]}  d6 {[%clk 0:02:54]} 4. Nc3 {[%clk 0:02:56]}  Nf6 {[%clk 0:02:46]} 5. g3 {[%clk 0:02:56]}  O-O {[%clk 0:02:46]} 6. Bg2 {[%clk 0:02:56]}  Nc6 {[%clk 0:02:46]} 7. O-O {[%clk 0:02:56]}  e5 {[%clk 0:02:46]} 8. d5 {[%clk 0:02:56]}  Nb8 {[%clk 0:02:46]} 9. c5 {[%clk 0:02:57]}  Na6 {[%clk 0:02:40]} 10. cxd6 {[%clk 0:02:56]}  cxd6 {[%clk 0:02:41]} 11. a4 {[%clk 0:02:55]}  Bd7 {[%clk 0:02:36]} 12. Nd2 {[%clk 0:02:50]}  Ne8 {[%clk 0:02:32]} 13. Nc4 {[%clk 0:02:28]}  Rc8 {[%clk 0:02:29]} 14. b3 {[%clk 0:02:27]}  Nc5 {[%clk 0:02:28]} 15. Be3 {[%clk 0:02:20]}  Qe7 {[%clk 0:01:53]} 16. Rc1 {[%clk 0:02:08]}  f5 {[%clk 0:00:54]} 17. Nb5 {[%clk 0:01:52]}  Bxb5 {[%clk 0:00:48]} 18. axb5 {[%clk 0:01:51]}  b6 {[%clk 0:00:42]} 19. b4 {[%clk 0:01:50]}  Nd7 {[%clk 0:00:42]} 20. Qa4 {[%clk 0:01:39]}  f4 {[%clk 0:00:31]} 21. Bd2 {[%clk 0:01:33]}  Rc7 {[%clk 0:00:31]} 22. Na3 {[%clk 0:01:18]}  Nb8 {[%clk 0:00:24]} 23. Rxc7 {[%clk 0:01:13]}  Qxc7 {[%clk 0:00:25]} 24. Bh3 {[%clk 0:01:09]}  Nf6 {[%clk 0:00:20]} 25. Be6+ {[%clk 0:01:05]}  Kh8 {[%clk 0:00:21]} 26. Rc1 {[%clk 0:01:02]}  Qe7 {[%clk 0:00:21]} 27. Qc2 {[%clk 0:00:56]}  fxg3 {[%clk 0:00:18]} 28. hxg3 {[%clk 0:00:54]}  Ne8 {[%clk 0:00:16]} 29. Qc8 {[%clk 0:00:39]}  Nf6 {[%clk 0:00:09]} 30. Qc7 {[%clk 0:00:34]}  Nbd7 {[%clk 0:00:05]} 31. Qxa7 {[%clk 0:00:33]}  Rd8 {[%clk 0:00:03]} 32. Bg5 {[%clk 0:00:28]}  h6 {[%clk 0:00:02]} 33. Bxf6 {[%clk 0:00:28]}  Qxf6 {[%clk 0:00:02]} 34. Bxd7 {[%clk 0:00:25]}  Qf7 {[%clk 0:00:02]} 35. Rc7 {[%clk 0:00:18]}  Rf8 {[%clk 0:00:02]} 36. f3 {[%clk 0:00:19]}  e4 {[%clk 0:00:02]} 37. Be6 {[%clk 0:00:13]}  Qf6 {[%clk 0:00:02]} 38. Rxg7 {[%clk 0:00:13]}  Qxg7 {[%clk 0:00:02]} 39. Qxg7+ {[%clk 0:00:14]}  Kxg7 {[%clk 0:00:02]} 40. Nc4 {[%clk 0:00:13]}  exf3 {[%clk 0:00:02]} 41. exf3 {[%clk 0:00:14]}  Rxf3 {[%clk 0:00:03]} 42. Nxd6 {[%clk 0:00:12]}  Rxg3+ {[%clk 0:00:02]} 43. Kf2 {[%clk 0:00:13]}  Rb3 {[%clk 0:00:02]} 44. Nc8 {[%clk 0:00:12]}  Rxb4 {[%clk 0:00:02]} 45. d6 {[%clk 0:00:12]}  Rd4 {[%clk 0:00:02]} 46. d7 {[%clk 0:00:09]}  Kf6 {[%clk 0:00:02]} 47. Bh3 {[%clk 0:00:09]}  h5 {[%clk 0:00:02]} 48. Na7 {[%clk 0:00:08]}  g5 {[%clk 0:00:02]} 49. Nc6 {[%clk 0:00:08]}  Rd2+ {[%clk 0:00:02]} 50. Ke3 {[%clk 0:00:08]}  Rd6 {[%clk 0:00:02]} 51. d8=Q+ {[%clk 0:00:08]}  Rxd8 {[%clk 0:00:03]} 52. Nxd8 {[%clk 0:00:09]}  Ke5 {[%clk 0:00:03]} 53. Bd7 {[%clk 0:00:09]}  Kd6 {[%clk 0:00:04]} 54. Bc6 {[%clk 0:00:09]}  Ke7 {[%clk 0:00:04]} 55. Nb7 {[%clk 0:00:09]}  g4 {[%clk 0:00:04]} 56. Kf4 {[%clk 0:00:09]}  Ke6 {[%clk 0:00:03]} 57. Kg3 {[%clk 0:00:09]}  Ke5 {[%clk 0:00:02]} 58. Kh4 {[%clk 0:00:10]}  Kd4 {[%clk 0:00:01]} 59. Kxh5 {[%clk 0:00:10]}  g3 {[%clk 0:00:00]} 60. Kg4 {[%clk 0:00:10]} 1-0


[Site "https://www.chess.com"]

[Event "Titled Tuesday Blitz July 11 Early 2023"]
[White "Papasimakopoulos, Alexandros"]
[Black "Grandelius, Nils"]
[WhiteFideId "4244125"]
[BlackFideId "1710400"]
[WhiteElo "2736"]
[BlackElo "2869"]
[Result "0-1"]
[Round "9"]
[TimeControl "180+2"]
[Date "2023.07.11"]
[WhiteClock "0:02:10"]
[BlackClock "0:01:41"]
[Board "16"]

1. d4 {[%clk 0:03:00]}  Nf6 {[%clk 0:02:59]} 2. c4 {[%clk 0:03:01]}  e6 {[%clk 0:02:59]} 3. Nc3 {[%clk 0:03:01]}  Bb4 {[%clk 0:02:59]} 4. Qb3 {[%clk 0:03:00]}  c5 {[%clk 0:02:56]} 5. dxc5 {[%clk 0:03:01]}  Nc6 {[%clk 0:02:51]} 6. Nf3 {[%clk 0:03:01]}  Ne4 {[%clk 0:02:38]} 7. Bd2 {[%clk 0:03:01]}  Nxd2 {[%clk 0:02:38]} 8. Nxd2 {[%clk 0:03:02]}  Bxc5 {[%clk 0:02:38]} 9. e3 {[%clk 0:03:02]}  O-O {[%clk 0:02:36]} 10. Be2 {[%clk 0:03:02]}  b6 {[%clk 0:02:36]} 11. O-O {[%clk 0:03:02]}  Bb7 {[%clk 0:02:35]} 12. Rfd1 {[%clk 0:02:58]}  Rc8 {[%clk 0:02:35]} 13. Nde4 {[%clk 0:02:55]}  Be7 {[%clk 0:02:33]} 14. Nd6 {[%clk 0:02:54]}  Bxd6 {[%clk 0:02:32]} 15. Rxd6 {[%clk 0:02:55]}  Qg5 {[%clk 0:02:25]} 16. Bf1 {[%clk 0:02:41]}  Ne5 {[%clk 0:01:52]} 17. Kh1 {[%clk 0:02:25]}  Ng4 {[%clk 0:01:49]} 18. Rxd7 {[%clk 0:02:10]}  Qh4 {[%clk 0:01:41]} 19. h3 {[%clk 0:02:10]}  Qxh3+ {[%clk 0:01:41]} 20. Kg1 {[%clk 0:02:10]}  Qh2# {[%clk 0:01:41]} 0-1


[Site "https://www.chess.com"]

[Event "Titled Tuesday Blitz July 11 Early 2023"]
[White "Frolyanov, Dmitry"]
[Black "Bachmann, Axel"]
[WhiteFideId "4151976"]
[BlackFideId "3700488"]
[WhiteElo "2614"]
[BlackElo "2804"]
[Result "1/2-1/2"]
[Round "9"]
[TimeControl "180+2"]
[Date "2023.07.11"]
[WhiteClock "0:00:47"]
[BlackClock "0:00:09"]
[Board "19"]

1. d4 {[%clk 0:03:00]}  Nf6 {[%clk 0:02:56]} 2. c4 {[%clk 0:03:00]}  e6 {[%clk 0:02:57]} 3. Nf3 {[%clk 0:03:00]}  Bb4+ {[%clk 0:02:56]} 4. Nbd2 {[%clk 0:02:59]}  O-O {[%clk 0:02:56]} 5. g3 {[%clk 0:02:59]}  d5 {[%clk 0:02:50]} 6. Bg2 {[%clk 0:02:58]}  dxc4 {[%clk 0:02:49]} 7. O-O {[%clk 0:02:58]}  c3 {[%clk 0:02:46]} 8. Nc4 {[%clk 0:02:52]}  cxb2 {[%clk 0:02:43]} 9. Bxb2 {[%clk 0:02:52]}  Nc6 {[%clk 0:02:20]} 10. Qb3 {[%clk 0:02:49]}  Qe7 {[%clk 0:02:17]} 11. Rfd1 {[%clk 0:02:46]}  Nd5 {[%clk 0:02:08]} 12. Rac1 {[%clk 0:02:43]}  Nb6 {[%clk 0:02:01]} 13. e4 {[%clk 0:02:26]}  Nxc4 {[%clk 0:01:48]} 14. Qxc4 {[%clk 0:02:17]}  Ba3 {[%clk 0:01:26]} 15. Bxa3 {[%clk 0:02:16]}  Qxa3 {[%clk 0:01:27]} 16. d5 {[%clk 0:02:15]}  exd5 {[%clk 0:01:28]} 17. exd5 {[%clk 0:02:15]}  Na5 {[%clk 0:01:28]} 18. Qxc7 {[%clk 0:02:14]}  Bg4 {[%clk 0:01:29]} 19. Qc3 {[%clk 0:01:59]}  Qxc3 {[%clk 0:01:23]} 20. Rxc3 {[%clk 0:02:00]}  Rac8 {[%clk 0:01:23]} 21. Rdc1 {[%clk 0:01:57]}  Rxc3 {[%clk 0:01:21]} 22. Rxc3 {[%clk 0:01:58]}  Rc8 {[%clk 0:01:05]} 23. Rxc8+ {[%clk 0:01:55]}  Bxc8 {[%clk 0:01:05]} 24. Nd4 {[%clk 0:01:45]}  Kf8 {[%clk 0:01:03]} 25. d6 {[%clk 0:01:40]}  Nc4 {[%clk 0:01:02]} 26. d7 {[%clk 0:01:35]}  Bxd7 {[%clk 0:01:01]} 27. Bxb7 {[%clk 0:01:35]}  Ke7 {[%clk 0:01:01]} 28. Bd5 {[%clk 0:01:32]}  Nb6 {[%clk 0:00:53]} 29. Bb3 {[%clk 0:01:32]}  a5 {[%clk 0:00:53]} 30. f4 {[%clk 0:01:31]}  a4 {[%clk 0:00:53]} 31. Bc2 {[%clk 0:01:27]}  g6 {[%clk 0:00:54]} 32. Kf2 {[%clk 0:01:26]}  Kd6 {[%clk 0:00:53]} 33. Ke3 {[%clk 0:01:19]}  Kc5 {[%clk 0:00:52]} 34. Nf3 {[%clk 0:01:18]}  Be6 {[%clk 0:00:44]} 35. Bb1 {[%clk 0:01:14]}  Nc4+ {[%clk 0:00:40]} 36. Ke2 {[%clk 0:01:09]}  Na3 {[%clk 0:00:35]} 37. Be4 {[%clk 0:01:02]}  Bxa2 {[%clk 0:00:35]} 38. Ne5 {[%clk 0:01:01]}  Nb5 {[%clk 0:00:29]} 39. Nd3+ {[%clk 0:00:53]}  Kd4 {[%clk 0:00:28]} 40. Nb4 {[%clk 0:00:47]}  Nc3+ {[%clk 0:00:19]} 41. Kf3 {[%clk 0:00:47]}  Nxe4 {[%clk 0:00:19]} 42. Nxa2 {[%clk 0:00:48]}  a3 {[%clk 0:00:19]} 43. Nb4 {[%clk 0:00:47]}  Nc3 {[%clk 0:00:16]} 44. Nc2+ {[%clk 0:00:46]}  Kd5 {[%clk 0:00:11]} 45. Nxa3 {[%clk 0:00:47]}  Ke6 {[%clk 0:00:12]} 46. Nc2 {[%clk 0:00:47]}  Kf6 {[%clk 0:00:09]} 1/2-1/2


[Site "https://www.chess.com"]

[Event "Titled Tuesday Blitz July 11 Early 2023"]
[White "NikaVolkov"]
[Black "Movahed, Sina"]
[BlackFideId "42520835"]
[WhiteElo "2710"]
[BlackElo "2996"]
[Result "1/2-1/2"]
[Round "9"]
[TimeControl "180+2"]
[Date "2023.07.11"]
[WhiteClock "0:00:10"]
[BlackClock "0:00:09"]
[Board "21"]

1. d4 {[%clk 0:02:57]}  Nf6 {[%clk 0:02:59]} 2. Nf3 {[%clk 0:02:57]}  g6 {[%clk 0:02:59]} 3. c4 {[%clk 0:02:58]}  Bg7 {[%clk 0:02:59]} 4. Nc3 {[%clk 0:02:58]}  O-O {[%clk 0:02:59]} 5. e4 {[%clk 0:02:58]}  d6 {[%clk 0:03:00]} 6. Be2 {[%clk 0:02:59]}  e5 {[%clk 0:03:00]} 7. O-O {[%clk 0:03:00]}  exd4 {[%clk 0:03:01]} 8. Nxd4 {[%clk 0:03:01]}  Re8 {[%clk 0:03:01]} 9. Bf3 {[%clk 0:02:59]}  Nbd7 {[%clk 0:02:58]} 10. Qc2 {[%clk 0:02:56]}  Ne5 {[%clk 0:02:58]} 11. Be2 {[%clk 0:02:56]}  c6 {[%clk 0:02:46]} 12. b3 {[%clk 0:02:55]}  d5 {[%clk 0:02:40]} 13. cxd5 {[%clk 0:02:50]}  cxd5 {[%clk 0:02:41]} 14. exd5 {[%clk 0:02:49]}  Nxd5 {[%clk 0:02:36]} 15. Nxd5 {[%clk 0:02:49]}  Qxd5 {[%clk 0:02:37]} 16. Bb2 {[%clk 0:02:50]}  Bg4 {[%clk 0:01:55]} 17. Bxg4 {[%clk 0:02:42]}  Nxg4 {[%clk 0:01:56]} 18. Rad1 {[%clk 0:02:43]}  Rac8 {[%clk 0:01:53]} 19. Qb1 {[%clk 0:02:33]}  Qh5 {[%clk 0:01:48]} 20. Nf3 {[%clk 0:02:30]}  Bxb2 {[%clk 0:01:19]} 21. Qxb2 {[%clk 0:02:31]}  Qf5 {[%clk 0:01:13]} 22. Rfe1 {[%clk 0:02:28]}  Rxe1+ {[%clk 0:01:12]} 23. Rxe1 {[%clk 0:02:29]}  h5 {[%clk 0:01:13]} 24. h3 {[%clk 0:02:28]}  Nf6 {[%clk 0:01:13]} 25. Re7 {[%clk 0:02:25]}  Qf4 {[%clk 0:01:13]} 26. Re1 {[%clk 0:01:54]}  Nd5 {[%clk 0:01:08]} 27. Ne5 {[%clk 0:01:52]}  Re8 {[%clk 0:01:05]} 28. Nd3 {[%clk 0:01:40]}  Rxe1+ {[%clk 0:01:04]} 29. Nxe1 {[%clk 0:01:41]}  Qe4 {[%clk 0:01:04]} 30. Nf3 {[%clk 0:01:40]}  Nf4 {[%clk 0:01:05]} 31. Qf6 {[%clk 0:01:28]}  Ne2+ {[%clk 0:00:47]} 32. Kf1 {[%clk 0:01:20]}  Qe8 {[%clk 0:00:44]} 33. Qd6 {[%clk 0:00:55]}  Nc3 {[%clk 0:00:39]} 34. Qd2 {[%clk 0:00:50]}  Qb5+ {[%clk 0:00:35]} 35. Kg1 {[%clk 0:00:48]}  Qc5 {[%clk 0:00:34]} 36. Kf1 {[%clk 0:00:25]}  b5 {[%clk 0:00:32]} 37. Qd8+ {[%clk 0:00:18]}  Kg7 {[%clk 0:00:31]} 38. Qd2 {[%clk 0:00:16]}  b4 {[%clk 0:00:30]} 39. h4 {[%clk 0:00:14]}  a5 {[%clk 0:00:28]} 40. Kg1 {[%clk 0:00:13]}  Kg8 {[%clk 0:00:26]} 41. g3 {[%clk 0:00:12]}  Qf5 {[%clk 0:00:25]} 42. Kg2 {[%clk 0:00:12]}  Qe4 {[%clk 0:00:24]} 43. Qd8+ {[%clk 0:00:10]}  Kg7 {[%clk 0:00:24]} 44. Qxa5 {[%clk 0:00:11]}  Nd1 {[%clk 0:00:20]} 45. Qc5 {[%clk 0:00:06]}  Qe2 {[%clk 0:00:18]} 46. Qd4+ {[%clk 0:00:06]}  Kg8 {[%clk 0:00:18]} 47. Qd8+ {[%clk 0:00:05]}  Kg7 {[%clk 0:00:18]} 48. Qd2 {[%clk 0:00:05]}  Qxd2 {[%clk 0:00:17]} 49. Nxd2 {[%clk 0:00:06]}  Nc3 {[%clk 0:00:18]} 50. Kf3 {[%clk 0:00:07]}  Nxa2 {[%clk 0:00:16]} 51. Ke3 {[%clk 0:00:08]}  Kf6 {[%clk 0:00:16]} 52. Kd4 {[%clk 0:00:08]}  Kf5 {[%clk 0:00:16]} 53. f3 {[%clk 0:00:09]}  Nc3 {[%clk 0:00:15]} 54. Kd3 {[%clk 0:00:09]}  g5 {[%clk 0:00:13]} 55. hxg5 {[%clk 0:00:08]}  Kxg5 {[%clk 0:00:14]} 56. Nf1 {[%clk 0:00:06]}  Kf5 {[%clk 0:00:14]} 57. Ne3+ {[%clk 0:00:06]}  Kg5 {[%clk 0:00:14]} 58. Nc2 {[%clk 0:00:07]}  Na2 {[%clk 0:00:12]} 59. Ke4 {[%clk 0:00:06]}  h4 {[%clk 0:00:12]} 60. gxh4+ {[%clk 0:00:06]}  Kxh4 {[%clk 0:00:13]} 61. f4 {[%clk 0:00:06]}  Kg4 {[%clk 0:00:13]} 62. Ne3+ {[%clk 0:00:07]}  Kg3 {[%clk 0:00:14]} 63. Nd5 {[%clk 0:00:07]}  Nc3+ {[%clk 0:00:10]} 64. Nxc3 {[%clk 0:00:03]}  bxc3 {[%clk 0:00:11]} 65. Kd3 {[%clk 0:00:04]}  Kxf4 {[%clk 0:00:12]} 66. Kxc3 {[%clk 0:00:04]}  f5 {[%clk 0:00:07]} 67. b4 {[%clk 0:00:04]}  Ke3 {[%clk 0:00:04]} 68. b5 {[%clk 0:00:05]}  f4 {[%clk 0:00:05]} 69. b6 {[%clk 0:00:06]}  f3 {[%clk 0:00:06]} 70. b7 {[%clk 0:00:06]}  f2 {[%clk 0:00:07]} 71. b8=Q {[%clk 0:00:06]}  f1=Q {[%clk 0:00:08]} 72. Qe5+ {[%clk 0:00:06]}  Kf2 {[%clk 0:00:08]} 73. Kd2 {[%clk 0:00:06]}  Qg2 {[%clk 0:00:07]} 74. Qe3+ {[%clk 0:00:04]}  Kf1+ {[%clk 0:00:07]} 75. Kd1 {[%clk 0:00:05]}  Qf2 {[%clk 0:00:08]} 76. Qh3+ {[%clk 0:00:05]}  Kg1 {[%clk 0:00:07]} 77. Qg4+ {[%clk 0:00:05]}  Qg2 {[%clk 0:00:07]} 78. Qd4+ {[%clk 0:00:06]}  Qf2 {[%clk 0:00:08]} 79. Qg7+ {[%clk 0:00:07]}  Qg2 {[%clk 0:00:08]} 80. Qc7 {[%clk 0:00:07]}  Qf1+ {[%clk 0:00:08]} 81. Kd2 {[%clk 0:00:07]}  Qg2+ {[%clk 0:00:09]} 82. Kd3 {[%clk 0:00:07]}  Qh3+ {[%clk 0:00:09]} 83. Kd4 {[%clk 0:00:08]}  Qh4+ {[%clk 0:00:09]} 84. Kd5 {[%clk 0:00:08]}  Qh5+ {[%clk 0:00:09]} 85. Qe5 {[%clk 0:00:09]}  Qxe5+ {[%clk 0:00:09]} 86. Kxe5 {[%clk 0:00:10]} 1/2-1/2


[Site "https://www.chess.com"]

[Event "Titled Tuesday Blitz July 11 Early 2023"]
[White "Galchenko, Matvey"]
[Black "Amilal Munkhdalai"]
[WhiteFideId "24175480"]
[BlackFideId "4903250"]
[WhiteElo "2864"]
[BlackElo "2698"]
[Result "1/2-1/2"]
[Round "9"]
[TimeControl "180+2"]
[Date "2023.07.11"]
[WhiteClock "0:00:06"]
[BlackClock "0:00:17"]
[Board "23"]

1. f4 {[%clk 0:03:00]}  Nf6 {[%clk 0:02:54]} 2. Nf3 {[%clk 0:03:00]}  g6 {[%clk 0:02:54]} 3. g3 {[%clk 0:02:58]}  Bg7 {[%clk 0:02:54]} 4. Bg2 {[%clk 0:02:58]}  d6 {[%clk 0:02:55]} 5. O-O {[%clk 0:02:59]}  O-O {[%clk 0:02:55]} 6. d3 {[%clk 0:03:00]}  Bg4 {[%clk 0:02:55]} 7. Nc3 {[%clk 0:03:01]}  Nbd7 {[%clk 0:02:54]} 8. e4 {[%clk 0:03:01]}  e5 {[%clk 0:02:54]} 9. h3 {[%clk 0:03:02]}  Bxf3 {[%clk 0:02:54]} 10. Qxf3 {[%clk 0:03:02]}  h5 {[%clk 0:02:51]} 11. f5 {[%clk 0:02:59]}  Nh7 {[%clk 0:02:46]} 12. Be3 {[%clk 0:02:51]}  c6 {[%clk 0:02:45]} 13. a4 {[%clk 0:02:50]}  Bf6 {[%clk 0:02:43]} 14. h4 {[%clk 0:02:46]}  Bg7 {[%clk 0:02:41]} 15. Bh3 {[%clk 0:02:45]}  Qe7 {[%clk 0:02:40]} 16. Kh2 {[%clk 0:02:42]}  Rad8 {[%clk 0:02:35]} 17. Rg1 {[%clk 0:02:41]}  Ndf6 {[%clk 0:02:34]} 18. g4 {[%clk 0:02:36]}  hxg4 {[%clk 0:02:34]} 19. Bxg4 {[%clk 0:02:37]}  Nxg4+ {[%clk 0:02:34]} 20. Qxg4 {[%clk 0:02:35]}  Nf6 {[%clk 0:02:32]} 21. Qf3 {[%clk 0:02:32]}  d5 {[%clk 0:02:27]} 22. Bg5 {[%clk 0:02:29]}  Qd6 {[%clk 0:02:20]} 23. Raf1 {[%clk 0:02:26]}  Rd7 {[%clk 0:02:18]} 24. h5 {[%clk 0:01:48]}  Nxh5 {[%clk 0:02:16]} 25. f6 {[%clk 0:01:48]}  Nxf6 {[%clk 0:01:59]} 26. Bxf6 {[%clk 0:01:47]}  Bxf6 {[%clk 0:01:58]} 27. Qxf6 {[%clk 0:01:48]}  Qxf6 {[%clk 0:01:58]} 28. Rxf6 {[%clk 0:01:47]}  Kg7 {[%clk 0:01:59]} 29. Rgf1 {[%clk 0:01:44]}  Rh8+ {[%clk 0:01:54]} 30. Kg3 {[%clk 0:01:44]}  Rh5 {[%clk 0:01:54]} 31. a5 {[%clk 0:01:39]}  a6 {[%clk 0:01:50]} 32. exd5 {[%clk 0:01:37]}  cxd5 {[%clk 0:01:50]} 33. Rb6 {[%clk 0:01:38]}  Rg5+ {[%clk 0:01:45]} 34. Kf2 {[%clk 0:01:35]}  e4 {[%clk 0:01:36]} 35. d4 {[%clk 0:01:26]}  Re7 {[%clk 0:01:25]} 36. Rd6 {[%clk 0:01:19]}  e3+ {[%clk 0:01:24]} 37. Ke1 {[%clk 0:01:19]}  Rg2 {[%clk 0:01:19]} 38. Nxd5 {[%clk 0:01:15]}  Re4 {[%clk 0:01:19]} 39. Nc3 {[%clk 0:00:47]}  Rh4 {[%clk 0:01:16]} 40. Rd7 {[%clk 0:00:30]}  Rxc2 {[%clk 0:01:08]} 41. Rfxf7+ {[%clk 0:00:18]}  Kg8 {[%clk 0:01:08]} 42. Rg7+ {[%clk 0:00:19]}  Kh8 {[%clk 0:01:09]} 43. Rgf7 {[%clk 0:00:05]}  Rh1+ {[%clk 0:01:08]} 44. Rf1 {[%clk 0:00:05]}  Rc1+ {[%clk 0:01:09]} 45. Nd1 {[%clk 0:00:04]}  Rxf1+ {[%clk 0:00:54]} 46. Kxf1 {[%clk 0:00:04]}  Rxd1+ {[%clk 0:00:55]} 47. Ke2 {[%clk 0:00:05]}  Rd2+ {[%clk 0:00:55]} 48. Kxe3 {[%clk 0:00:05]}  Rxb2 {[%clk 0:00:55]} 49. Kf4 {[%clk 0:00:05]}  Rb5 {[%clk 0:00:52]} 50. d5 {[%clk 0:00:03]}  Kg8 {[%clk 0:00:47]} 51. Kg5 {[%clk 0:00:02]}  Rxa5 {[%clk 0:00:46]} 52. Kf6 {[%clk 0:00:02]}  b5 {[%clk 0:00:35]} 53. d6 {[%clk 0:00:02]}  Ra1 {[%clk 0:00:32]} 54. Rd8+ {[%clk 0:00:02]}  Kh7 {[%clk 0:00:32]} 55. Ra8 {[%clk 0:00:03]}  Rd1 {[%clk 0:00:26]} 56. Ke7 {[%clk 0:00:03]}  Re1+ {[%clk 0:00:26]} 57. Kd8 {[%clk 0:00:03]}  g5 {[%clk 0:00:25]} 58. d7 {[%clk 0:00:03]}  g4 {[%clk 0:00:25]} 59. Rxa6 {[%clk 0:00:04]}  g3 {[%clk 0:00:22]} 60. Ra2 {[%clk 0:00:03]}  Kh6 {[%clk 0:00:20]} 61. Rg2 {[%clk 0:00:04]}  Re3 {[%clk 0:00:20]} 62. Kc7 {[%clk 0:00:04]}  Rc3+ {[%clk 0:00:20]} 63. Kb7 {[%clk 0:00:04]}  Rd3 {[%clk 0:00:20]} 64. Kc8 {[%clk 0:00:05]}  Rc3+ {[%clk 0:00:16]} 65. Kb7 {[%clk 0:00:05]}  Rd3 {[%clk 0:00:17]} 66. Kc7 {[%clk 0:00:06]}  Rc3+ {[%clk 0:00:17]} 67. Kb6 {[%clk 0:00:07]}  Rd3 {[%clk 0:00:17]} 68. Kxb5 {[%clk 0:00:05]}  Rxd7 {[%clk 0:00:16]} 69. Rxg3 {[%clk 0:00:05]}  Rd5+ {[%clk 0:00:16]} 70. Kc6 {[%clk 0:00:06]}  Rg5 {[%clk 0:00:16]} 71. Rxg5 {[%clk 0:00:06]}  Kxg5 {[%clk 0:00:17]} 1/2-1/2


[Site "https://www.chess.com"]